bitfinex/quotes_BTCUSD_20260310
["timestamp","ask_amount","ask_price","bid_price","bid_amount"]
[1773128120778,0.00584001,70404.0,70394.0,0.02215435]
[1773128121133,0.00048,70406.0,70396.0,0.30557589]
[1773128121533,0.00048,70406.0,70396.0,0.28342154]
[1773128122180,0.03,70404.0,70393.0,0.07102978]
[1773128122994,0.03,70404.0,70394.0,0.001]
[1773128123201,0.00048,70406.0,70392.0,0.07241144]
[1773128123202,0.03,70403.0,70392.0,0.07102978]
[1773128123401,0.00048,70406.0,70393.0,0.00144]
[1773128123402,0.0228355,70396.0,70393.0,0.00144]
[1773128123608,0.03,70395.0,70394.0,0.00144]
[1773128123809,0.03,70395.0,70389.0,0.07103382]
[1773128124005,0.03,70395.0,70390.0,0.00144]
[1773128124558,0.03,70395.0,70391.0,0.00144]
[1773128124732,0.03,70394.0,70391.0,0.00144]
[1773128125684,0.03,70393.0,70391.0,0.00144]
[1773128126708,0.00022001,70398.0,70392.0,0.07103079]
[1773128128658,0.03,70394.0,70376.0,0.07666647]
[1773128128828,0.03,70394.0,70374.0,0.30570699]
[1773128128829,0.03,70388.0,70374.0,0.0001311]
[1773128129029,0.03,70384.0,70374.0,0.00144]
[1773128129267,0.03,70377.0,70371.0,0.00144]
[1773128129464,0.03,70373.0,70367.0,0.0001311]
[1773128129671,0.03,70373.0,70368.0,0.07125475]
[1773128129877,0.33305402,70380.0,70364.0,0.0002]
[1773128129878,0.03,70371.0,70364.0,0.0002]
[1773128130032,0.03,70367.0,70360.0,0.0003311]
[1773128130235,0.03,70365.0,70361.0,0.00144]
[1773128130436,0.0528355,70365.0,70361.0,0.00144]
[1773128130680,0.0528355,70365.0,70360.0,0.0003311]
[1773128130901,0.0528355,70365.0,70361.0,0.00144]
[1773128131399,0.0528355,70365.0,70362.0,0.00144]
[1773128131877,0.03,70369.0,70362.0,0.00144]
[1773128132077,0.0528355,70369.0,70362.0,0.00144]
[1773128132249,0.03,70365.0,70362.0,0.00144]
[1773128133739,0.0228355,70366.0,70362.0,0.00144]
[1773128134087,0.03,70369.0,70362.0,0.07250076]
[1773128134712,0.03,70369.0,70363.0,0.00144]
[1773128136108,0.031,70369.0,70363.0,0.00144]
[1773128136413,0.03,70369.0,70363.0,0.00144]
[1773128137617,0.0228355,70370.0,70363.0,0.07249986]
[1773128138157,0.0228355,70370.0,70363.0,0.00144]
[1773128138317,0.0228355,70370.0,70364.0,0.00144]
[1773128139756,0.07205359,70370.0,70364.0,0.00144]
[1773128139926,0.03,70368.0,70364.0,0.00144]
[1773128140128,0.0515089,70365.0,70364.0,0.00144]
[1773128141180,0.0515089,70364.0,70363.0,0.00144]
[1773128141757,0.03,70362.0,70343.0,0.07107957]
[1773128141958,0.03,70356.0,70349.0,0.07127375]
[1773128142296,0.03,70356.0,70349.0,0.0002]
[1773128142874,0.03,70356.0,70349.0,0.07127405]
[1773128143093,0.03,70355.0,70349.0,0.07127405]
[1773128143738,0.03,70355.0,70349.0,0.0002]
[1773128144145,0.03,70354.0,70349.0,0.0002]
[1773128144850,0.07106608,70358.0,70344.0,0.00144]
[1773128144851,0.03,70348.0,70344.0,0.00144]
[1773128145014,0.03,70346.0,70344.0,0.00144]
[1773128145209,0.03,70345.0,70344.0,0.00144]
[1773128145416,0.03,70345.0,70343.0,0.00144]
[1773128145611,0.0515089,70344.0,70343.0,0.00144]
[1773128145815,0.03,70344.0,70334.0,0.07108849]
[1773128146035,0.03,70340.0,70335.0,0.00144]
[1773128146241,0.03,70340.0,70336.0,0.00144]
[1773128146404,0.03,70336.0,70334.0,0.07108849]
[1773128146605,0.03,70336.0,70335.0,0.00144]
[1773128148017,0.07107964,70344.0,70335.0,0.00144]
[1773128148225,0.07106815,70355.0,70336.0,0.29867785]
[1773128148534,0.03,70354.0,70339.0,0.02331746]
[1773128148961,0.03,70352.0,70335.0,0.09584556]
[1773128149160,0.03,70350.0,70336.0,0.02331746]
[1773128150464,0.07106651,70357.0,70340.0,0.29867785]
[1773128150707,0.07106651,70357.0,70344.0,0.02331746]
[1773128151083,0.07106651,70357.0,70345.0,0.00144]
[1773128151292,0.02163568,70356.0,70346.0,0.00144]
[1773128151501,0.03,70355.0,70340.0,0.02331746]
[1773128151690,0.03,70353.0,70340.0,0.02331746]
[1773128151885,0.03,70353.0,70341.0,0.00144]
[1773128152327,0.03,70353.0,70343.0,0.07108027]
[1773128152912,0.03,70353.0,70344.0,0.02331746]
[1773128154784,0.03,70353.0,70345.0,0.07107825]
[1773128155204,0.07106777,70356.0,70345.0,0.07107825]
[1773128155205,0.03,70355.0,70345.0,0.07107825]
[1773128155825,0.07249335,70370.0,70349.0,0.29867785]
[1773128156026,0.07127423,70369.0,70352.0,0.02331746]
[1773128156228,0.03,70368.0,70352.0,0.02331746]
[1773128156434,0.03,70368.0,70353.0,0.02331746]
[1773128156639,0.07127423,70369.0,70354.0,0.07106916]
[1773128157068,0.07127423,70369.0,70355.0,0.02331746]
[1773128157215,0.07127423,70369.0,70356.0,0.00144]
[1773128157682,0.09290991,70369.0,70356.0,0.00144]
[1773128159227,0.09290991,70369.0,70356.0,0.07250687]
[1773128159513,0.09290991,70369.0,70356.0,0.00144]
[1773128159717,0.07127423,70369.0,70356.0,0.00144]
[1773128159931,0.02163568,70368.0,70356.0,0.00144]
[1773128160904,0.02163568,70368.0,70336.0,0.16833089]
[1773128161107,0.02163568,70357.0,70340.0,0.0710833]
[1773128161341,0.02163568,70351.0,70334.0,0.07128851]
[1773128161543,0.03,70346.0,70334.0,0.07128851]
[1773128161750,0.05163568,70344.0,70336.0,0.0002]
[1773128161978,0.03,70344.0,70336.0,0.00164]
[1773128162406,0.02163568,70347.0,70336.0,0.00164]
[1773128162749,0.2753532,70348.0,70336.0,0.00164]
[1773128162750,0.05163568,70346.0,70336.0,0.00164]
[1773128163275,0.03,70344.0,70336.0,0.00164]
[1773128163482,0.02163568,70344.0,70336.0,0.0002]
[1773128163634,0.02163568,70344.0,70336.0,0.00164]
[1773128164271,0.28373214,70344.0,70334.0,0.0002]
[1773128164473,0.03,70340.0,70334.0,0.0002]
[1773128165065,0.03,70340.0,70336.0,0.001]
[1773128165473,0.10108156,70342.0,70336.0,0.001]
[1773128166081,0.10108156,70342.0,70334.0,0.0012]
[1773128166256,0.10108156,70342.0,70334.0,0.0002]
[1773128166555,0.10108156,70342.0,70334.0,0.0012]
[1773128166885,0.10108156,70342.0,70333.0,0.07129402]
[1773128167347,0.03,70342.0,70333.0,0.07129402]
[1773128167514,0.10108178,70342.0,70333.0,0.07129402]
[1773128167721,0.03,70341.0,70333.0,0.07129402]
[1773128167938,0.07107882,70345.0,70334.0,0.02331746]
[1773128168299,0.00144,70352.0,70336.0,0.02331746]
[1773128168504,0.07107017,70354.0,70338.0,0.27710473]
[1773128168713,0.03,70353.0,70339.0,0.02475746]
[1773128169108,0.03,70353.0,70340.0,0.27710473]
[1773128169317,0.07107017,70354.0,70343.0,0.02331746]
[1773128169318,0.03,70351.0,70343.0,0.02331746]
[1773128170289,0.02241622,70352.0,70343.0,0.02331746]
[1773128170490,0.02141338,70351.0,70340.0,0.001]
[1773128170689,0.02241622,70352.0,70340.0,0.00144]
[1773128170690,0.28373214,70350.0,70340.0,0.00144]
[1773128170845,0.05141338,70349.0,70340.0,0.00144]
[1773128171212,0.03,70349.0,70334.0,0.0002]
[1773128171358,0.03,70345.0,70339.0,0.00144]
[1773128172161,0.03,70345.0,70334.0,0.0712893]
[1773128172358,0.03,70345.0,70335.0,0.00144]
[1773128172802,0.03,70344.0,70336.0,0.02273733]
[1773128173001,0.03,70344.0,70337.0,0.02273733]
[1773128173384,0.02141338,70353.0,70338.0,0.07108533]
[1773128173584,0.07250725,70356.0,70340.0,0.02273733]
[1773128173782,0.03,70354.0,70341.0,0.00144]
[1773128173981,0.03,70352.0,70341.0,0.00144]
[1773128174182,0.05141338,70352.0,70341.0,0.00144]
[1773128175015,0.05141338,70352.0,70342.0,0.00144]
[1773128175433,0.05141338,70352.0,70340.0,0.07108276]
[1773128175434,0.03,70350.0,70340.0,0.07108276]
[1773128175564,0.03,70350.0,70343.0,0.00144]
[1773128175970,0.03,70348.0,70335.0,0.07108747]
[1773128176187,0.03,70346.0,70336.0,0.00144]
[1773128176389,0.03,70344.0,70337.0,0.00144]
[1773128176944,0.05141338,70344.0,70338.0,0.00144]
[1773128177339,0.12249306,70344.0,70338.0,0.00144]
[1773128178143,0.10107968,70344.0,70338.0,0.00144]
[1773128178350,0.12249306,70344.0,70338.0,0.00144]
[1773128179067,0.03,70344.0,70338.0,0.00144]
[1773128179566,0.1010793,70344.0,70338.0,0.00144]
[1773128179997,0.1010793,70344.0,70338.0,0.00244]
[1773128180767,0.1010793,70344.0,70338.0,0.00144]
[1773128181156,0.03,70344.0,70338.0,0.00144]
[1773128182189,0.03,70342.0,70338.0,0.00144]
[1773128183314,0.03,70341.0,70338.0,0.00144]
[1773128183862,0.03,70341.0,70338.0,0.00164]
[1773128184161,0.03,70343.0,70338.0,0.00164]
[1773128185166,0.03022001,70344.0,70338.0,0.00164]
[1773128185715,0.03022001,70344.0,70338.0,0.00264]
[1773128185916,0.03022001,70344.0,70338.0,0.00164]
[1773128186237,0.03,70343.0,70338.0,0.00264]
[1773128186430,0.03,70343.0,70338.0,0.0002]
[1773128187008,0.07107261,70351.0,70338.0,0.0002]
[1773128187009,0.07129148,70352.0,70341.0,0.02273733]
[1773128187179,0.03,70351.0,70342.0,0.07252051]
[1773128187607,0.00022001,70352.0,70344.0,0.02273733]
[1773128187820,0.07129148,70352.0,70342.0,0.00144]
[1773128188044,0.07129148,70352.0,70342.0,0.07252087]
[1773128189094,0.03022001,70352.0,70342.0,0.07252087]
[1773128189572,0.10129155,70352.0,70342.0,0.00144]
[1773128189876,0.03,70350.0,70343.0,0.00144]
[1773128190224,0.03,70350.0,70339.0,0.07108236]
[1773128190469,0.03,70350.0,70344.0,0.00144]
[1773128190841,0.03,70351.0,70345.0,0.00144]
[1773128192875,0.03222001,70351.0,70345.0,0.00144]
[1773128193275,0.00022001,70352.0,70345.0,0.0952555]
[1773128193508,0.001,70351.0,70345.0,0.07251817]
[1773128193807,0.002,70351.0,70345.0,0.07251817]
[1773128194022,0.002,70351.0,70345.0,0.00144]
[1773128194171,0.032,70351.0,70345.0,0.00144]
[1773128194790,0.031,70351.0,70345.0,0.00144]
[1773128195203,0.03,70351.0,70345.0,0.00144]
[1773128196607,0.10107243,70351.0,70345.0,0.00144]
[1773128196838,0.10107243,70351.0,70344.0,0.00144]
[1773128197607,0.10107243,70351.0,70340.0,0.09381994]
[1773128197806,0.10107243,70351.0,70341.0,0.00144]
[1773128198646,0.031,70351.0,70342.0,0.07108128]
[1773128198855,0.03,70351.0,70342.0,0.07108128]
[1773128199422,0.03,70351.0,70345.0,0.0002]
[1773128199616,0.10107273,70351.0,70345.0,0.0002]
[1773128199834,0.07107128,70352.0,70345.0,0.00144]
[1773128200057,0.03,70351.0,70345.0,0.00144]
[1773128200475,0.03,70351.0,70341.0,0.02141642]
[1773128200684,0.10107305,70351.0,70345.0,0.00144]
[1773128202489,0.10207305,70351.0,70345.0,0.00144]
[1773128202706,0.10107305,70351.0,70345.0,0.00144]
[1773128203361,0.03,70350.0,70345.0,0.02285642]
[1773128203556,0.03,70350.0,70345.0,0.00144]
[1773128204476,0.03,70349.0,70345.0,0.00144]
[1773128204682,0.03,70347.0,70344.0,0.00144]
[1773128205831,0.03,70346.0,70344.0,0.00144]
[1773128206237,0.00022001,70353.0,70344.0,0.02285642]
[1773128206452,0.07129021,70353.0,70344.0,0.00144]
[1773128206883,0.03,70352.0,70344.0,0.07251898]
[1773128207081,0.09272038,70357.0,70344.0,0.07251898]
[1773128207082,0.00022001,70360.0,70347.0,0.29633299]
[1773128207303,0.07128463,70359.0,70345.0,0.02141642]
[1773128207742,0.00022001,70359.0,70347.0,0.02141642]
[1773128207973,0.03022001,70359.0,70349.0,0.02141642]
[1773128208180,0.03022001,70359.0,70351.0,0.02141642]
[1773128208892,0.03022001,70359.0,70351.0,0.09248831]
[1773128209547,0.00022001,70359.0,70352.0,0.02141642]
[1773128211033,0.03022001,70359.0,70351.0,0.07107199]
[1773128212189,0.03,70358.0,70352.0,0.00144]
[1773128213255,0.03,70357.0,70352.0,0.07251036]
[1773128213999,0.03,70357.0,70353.0,0.00144]
[1773128214208,0.03022001,70359.0,70353.0,0.00144]
[1773128215316,0.03,70358.0,70353.0,0.07250994]
[1773128216165,0.03,70358.0,70349.0,0.07107393]
[1773128216329,0.03,70358.0,70350.0,0.00144]
[1773128217169,0.03,70356.0,70350.0,0.00144]
[1773128217346,0.03,70352.0,70339.0,0.07128363]
[1773128217666,0.04765205,70352.0,70340.0,0.00144]
[1773128218500,0.04865205,70352.0,70339.0,0.07128363]
[1773128218632,0.04821347,70351.0,70340.0,0.00144]
[1773128220171,0.03,70349.0,70340.0,0.07252262]
[1773128220419,0.03,70349.0,70340.0,0.00144]
[1773128220709,0.03,70349.0,70340.0,0.07252316]
[1773128221255,0.03,70349.0,70340.0,0.06556516]
[1773128222163,0.03,70347.0,70340.0,0.06556516]
[1773128223210,0.03,70347.0,70338.0,0.00144]
[1773128223665,0.03,70347.0,70339.0,0.00144]
[1773128224732,0.03,70345.0,70339.0,0.00144]
[1773128225029,0.07107167,70352.0,70343.0,0.02047815]
[1773128225228,0.07107167,70352.0,70339.0,0.0725239]
[1773128225395,0.07107167,70352.0,70339.0,0.0710839]
[1773128225596,0.0539233,70350.0,70340.0,0.00144]
[1773128225805,0.0539233,70350.0,70337.0,0.07141072]
[1773128225806,0.03,70349.0,70341.0,0.00144]
[1773128226457,0.04778374,70349.0,70342.0,0.00144]
[1773128226680,0.10107623,70347.0,70340.0,0.00144]
[1773128227079,0.10107623,70347.0,70339.0,0.00144]
[1773128228304,0.10207623,70347.0,70339.0,0.00144]
[1773128228508,0.002,70347.0,70340.0,0.02047815]
[1773128228677,0.07129083,70353.0,70343.0,0.30085605]
[1773128228873,0.07106512,70358.0,70346.0,0.02047815]
[1773128229076,0.07106512,70358.0,70349.0,0.02047815]
[1773128229709,0.03,70357.0,70349.0,0.02047815]
[1773128230891,0.03,70356.0,70351.0,0.02031356]
[1773128231319,0.03,70356.0,70347.0,0.07251426]
[1773128231890,0.03,70355.0,70347.0,0.07251426]
[1773128232500,0.03,70355.0,70347.0,0.09282782]
[1773128232973,0.03,70354.0,70347.0,0.09282782]
[1773128233345,0.07128443,70359.0,70349.0,0.30085605]
[1773128233553,0.00022001,70359.0,70351.0,0.02031356]
[1773128233753,0.0712822,70361.0,70353.0,0.02031356]
[1773128233954,0.03,70360.0,70354.0,0.00144]
[1773128234152,0.03,70360.0,70352.0,0.02031356]
[1773128234359,0.03,70360.0,70353.0,0.00144]
[1773128234997,0.00022001,70361.0,70353.0,0.00144]
[1773128234998,0.03,70359.0,70353.0,0.09282324]
[1773128235829,0.03,70359.0,70353.0,0.02175356]
[1773128236468,0.03,70359.0,70353.0,0.00144]
[1773128237789,0.10106469,70359.0,70353.0,0.00144]
[1773128238966,0.10106431,70359.0,70353.0,0.00144]
[1773128239670,0.10128432,70359.0,70353.0,0.00144]
[1773128240311,0.10128432,70359.0,70352.0,0.00144]
[1773128242240,0.10128432,70359.0,70350.0,0.09138611]
[1773128242389,0.10128432,70359.0,70352.0,0.00144]
[1773128243082,0.03,70357.0,70353.0,0.02031356]
[1773128244031,0.31354078,70356.0,70333.0,0.16836455]
[1773128244293,0.31354078,70356.0,70335.0,0.00144]
[1773128244294,0.05165588,70349.0,70335.0,0.00144]
[1773128244656,0.05165588,70349.0,70335.0,0.02175356]
[1773128244850,0.05165588,70349.0,70335.0,0.02031356]
[1773128245058,0.03,70349.0,70336.0,0.02175356]
[1773128245252,0.03,70352.0,70336.0,0.02175356]
[1773128245458,0.03,70350.0,70337.0,0.02031356]
[1773128247169,0.03,70350.0,70336.0,0.07252652]
[1773128247170,0.07107205,70352.0,70341.0,0.32116961]
[1773128247380,0.07107205,70352.0,70344.0,0.02031356]
[1773128247656,0.07106652,70357.0,70345.0,0.02031356]
[1773128248099,0.03,70356.0,70345.0,0.02031356]
[1773128248862,0.03,70354.0,70340.0,0.07108255]
[1773128249105,0.03,70354.0,70346.0,0.00144]
[1773128249507,0.03,70354.0,70346.0,0.02175356]
[1773128249755,0.03,70352.0,70346.0,0.02175356]
[1773128249975,0.03,70352.0,70346.0,0.00144]
[1773128251658,0.03,70350.0,70340.0,0.07108246]
[1773128251832,0.03,70350.0,70341.0,0.00144]
[1773128252289,0.03,70350.0,70341.0,0.02175356]
[1773128253412,0.0301578,70350.0,70341.0,0.02175356]
[1773128253590,0.03,70348.0,70342.0,0.07108128]
[1773128254906,0.03,70348.0,70343.0,0.00144]
[1773128255109,0.03,70347.0,70344.0,0.02031356]
[1773128255990,0.0301578,70349.0,70344.0,0.02031356]
[1773128256770,0.07107318,70352.0,70344.0,0.02031356]
[1773128257169,0.03,70354.0,70345.0,0.09139181]
[1773128257411,0.03,70354.0,70345.0,0.02031356]
[1773128258023,0.03,70353.0,70345.0,0.02031356]
[1773128258860,0.00022001,70359.0,70346.0,0.29056205]
[1773128259087,0.00022001,70365.0,70352.0,0.07107118]
[1773128259088,0.03,70363.0,70352.0,0.07107118]
[1773128259295,0.03,70363.0,70354.0,0.02031356]
[1773128261338,0.00021041,70365.0,70356.0,0.02189714]
[1773128262554,0.07126855,70365.0,70356.0,0.02289714]
[1773128262759,0.00022001,70363.0,70356.0,0.02289714]
[1773128262955,0.00022001,70367.0,70357.0,0.02189714]
[1773128263166,0.00022001,70367.0,70359.0,0.02189714]
[1773128263372,0.07127626,70367.0,70361.0,0.02189714]
[1773128265334,0.07105192,70372.0,70361.0,0.02189714]
[1773128265335,0.07127045,70373.0,70364.0,0.02189714]
[1773128265556,0.07127045,70373.0,70366.0,0.02189714]
[1773128265757,0.07127045,70373.0,70368.0,0.02189714]
[1773128266160,0.07127045,70373.0,70367.0,0.00144]
[1773128266563,0.00022001,70373.0,70367.0,0.02333714]
[1773128266789,0.07127023,70373.0,70367.0,0.02333714]
[1773128268823,0.07127023,70373.0,70367.0,0.00144]
[1773128271348,0.03,70372.0,70367.0,0.00144]
[1773128272462,0.03,70372.0,70365.0,0.09223719]
[1773128272755,0.03,70371.0,70366.0,0.00144]
[1773128272985,0.03,70371.0,70366.0,0.02117954]
[1773128273192,0.03,70371.0,70366.0,0.02261954]
[1773128273570,0.07126627,70377.0,70369.0,0.02117954]
[1773128273863,0.07126597,70377.0,70369.0,0.02117954]
[1773128274674,0.01714883,70380.0,70369.0,0.02117954]
[1773128274850,0.03,70379.0,70370.0,0.02117954]
[1773128276376,0.10104414,70379.0,70371.0,0.07105199]
[1773128276582,0.10104414,70379.0,70372.0,0.00144]
[1773128277093,0.00022001,70377.0,70372.0,0.00144]
[1773128277510,0.03707467,70379.0,70372.0,0.07249051]
[1773128278785,0.08819182,70380.0,70372.0,0.07249051]
[1773128280029,0.08819182,70380.0,70372.0,0.09524796]
[1773128280660,0.08819182,70380.0,70372.0,0.02419745]
[1773128281958,0.08819182,70380.0,70372.0,0.09524836]
[1773128283317,0.08819182,70380.0,70372.0,0.02419745]
[1773128283829,0.08819182,70380.0,70372.0,0.09524799]
[1773128284783,0.08841183,70380.0,70372.0,0.09524799]
[1773128285711,0.08841183,70380.0,70372.0,0.09513576]
[1773128286751,0.08841183,70380.0,70372.0,0.07249054]
[1773128286892,0.01736884,70380.0,70373.0,0.02264522]
[1773128287998,0.08841189,70380.0,70373.0,0.09369518]
[1773128288204,0.08841189,70380.0,70374.0,0.02258268]
[1773128289749,0.00022001,70385.0,70374.0,0.02258268]
[1773128289964,0.10125821,70385.0,70374.0,0.02258268]
[1773128290134,0.10125821,70385.0,70376.0,0.02252041]
[1773128290546,0.31922819,70383.0,70366.0,0.02252041]
[1773128290913,0.03,70373.0,70350.0,0.0004076]
[1773128291085,0.03,70360.0,70350.0,0.0004076]
[1773128291260,0.05392169,70361.0,70349.0,0.00144]
[1773128291261,0.03,70358.0,70349.0,0.00144]
[1773128291441,0.03,70358.0,70348.0,0.00562]
[1773128291643,0.03,70358.0,70348.0,0.00706]
[1773128292143,0.03,70358.0,70348.0,0.0781349]
[1773128292313,0.10106603,70358.0,70350.0,0.001]
[1773128292510,0.10106603,70358.0,70348.0,0.0781349]
[1773128292960,0.10106603,70358.0,70352.0,0.0002]
[1773128298009,0.10106603,70358.0,70348.0,0.00706]
[1773128298205,0.10106603,70358.0,70348.0,0.07813497]
[1773128299327,0.10106603,70358.0,70352.0,0.0002]
[1773128303033,0.10106603,70358.0,70348.0,0.00144]
[1773128303227,0.10106603,70358.0,70339.0,0.07128607]
[1773128303228,0.03,70356.0,70339.0,0.07128607]
[1773128303497,0.03,70349.0,70341.0,0.00144]
[1773128303701,0.03,70347.0,70340.0,0.00144]
[1773128304127,0.03,70347.0,70339.0,0.0002018]
[1773128304290,0.03,70347.0,70340.0,0.00144]
[1773128304709,0.03,70347.0,70337.0,0.0002]
[1773128304909,0.31922819,70342.0,70336.0,0.00144]
[1773128305612,0.03,70340.0,70336.0,0.00144]
[1773128306494,0.07108229,70341.0,70336.0,0.00144]
[1773128306703,0.07108229,70341.0,70337.0,0.0002]
[1773128307833,0.00144,70352.0,70338.0,0.02342108]
[1773128308041,0.07107238,70351.0,70338.0,0.02342108]
[1773128308445,0.05392169,70350.0,70338.0,0.02342108]
[1773128308879,0.03,70349.0,70338.0,0.02342108]
[1773128309578,0.03,70349.0,70339.0,0.00144]
[1773128309948,0.03,70347.0,70339.0,0.07108432]
[1773128310178,0.03,70347.0,70340.0,0.00144]
[1773128310371,0.03,70347.0,70337.0,0.07128616]
[1773128310372,0.31922819,70347.0,70337.0,0.00164]
[1773128311569,0.03,70347.0,70337.0,0.00164]
[1773128311769,0.031,70347.0,70337.0,0.00164]
[1773128312003,0.031,70347.0,70337.0,0.02506128]
[1773128312204,0.03,70345.0,70337.0,0.02506128]
[1773128312419,0.03,70343.0,70336.0,0.00144]
[1773128313582,0.03,70345.0,70336.0,0.00144]
[1773128313766,0.03,70345.0,70337.0,0.0002]
[1773128314123,0.27645855,70352.0,70337.0,0.0002]
[1773128314124,0.00144,70356.0,70340.0,0.03522313]
[1773128314350,0.00144,70356.0,70342.0,0.03522313]
[1773128314551,0.03,70356.0,70344.0,0.03522313]
[1773128315298,0.03,70356.0,70346.0,0.03522055]
[1773128315504,0.03,70355.0,70346.0,0.03522055]
[1773128316320,0.03,70355.0,70348.0,0.03522055]
[1773128316512,0.03,70355.0,70350.0,0.03522055]
[1773128316915,0.07106789,70356.0,70350.0,0.03522055]
[1773128317722,0.03,70365.0,70351.0,0.26092904]
[1773128317896,0.03,70365.0,70352.0,0.03521686]
[1773128318300,0.03,70365.0,70310.0,0.28055474]
[1773128318301,0.03,70361.0,70338.0,0.07108533]
[1773128318501,0.03,70349.0,70339.0,0.03665686]
[1773128318696,0.03,70349.0,70339.0,0.03521686]
[1773128318923,0.03,70349.0,70341.0,0.03521686]
[1773128319526,0.05391618,70362.0,70343.0,0.03521888]
[1773128319738,0.00144,70361.0,70345.0,0.29614792]
[1773128319923,0.00144,70361.0,70346.0,0.03521888]
[1773128320472,0.0710631,70360.0,70348.0,0.03521888]
[1773128320680,0.03,70359.0,70349.0,0.00144]
[1773128320832,0.03,70359.0,70349.0,0.03665888]
[1773128321646,0.03,70359.0,70346.0,0.07127655]
[1773128321852,0.03,70357.0,70347.0,0.00144]
[1773128322055,0.0301736,70357.0,70347.0,0.00144]
[1773128322674,0.03,70355.0,70347.0,0.07251531]
[1773128322924,0.03,70355.0,70347.0,0.10773217]
[1773128323232,0.0301736,70355.0,70347.0,0.10773217]
[1773128323815,0.0301736,70355.0,70347.0,0.07251531]
[1773128323964,0.0301736,70355.0,70348.0,0.03521735]
[1773128324569,0.03,70354.0,70348.0,0.03521735]
[1773128324788,0.0710631,70360.0,70350.0,0.03521735]
[1773128325915,0.03,70359.0,70350.0,0.03521735]
[1773128326147,0.03,70357.0,70351.0,0.00144]
[1773128326968,0.03,70356.0,70351.0,0.07251177]
[1773128327392,0.03,70356.0,70351.0,0.00144]
[1773128328065,0.03,70357.0,70351.0,0.00144]
[1773128328563,0.03,70357.0,70350.0,0.00144]
[1773128328966,0.03,70354.0,70346.0,0.07127697]
[1773128329191,0.03,70354.0,70349.0,0.00144]
[1773128329693,0.03,70354.0,70346.0,0.0002]
[1773128329830,0.03,70352.0,70347.0,0.00144]
[1773128330212,0.03,70352.0,70346.0,0.0002]
[1773128330457,0.03,70352.0,70346.0,0.00164]
[1773128330660,0.03,70352.0,70342.0,0.00144]
[1773128330863,0.3049966,70352.0,70335.0,0.07108825]
[1773128331064,0.03,70348.0,70337.0,0.00164]
[1773128331267,0.03,70346.0,70337.0,0.00164]
[1773128332081,0.03,70346.0,70338.0,0.02190798]
[1773128332278,0.03,70350.0,70338.0,0.02190798]
[1773128332484,0.03,70350.0,70339.0,0.02190798]
[1773128333582,0.03,70348.0,70339.0,0.02190798]
[1773128334869,0.03,70355.0,70342.0,0.2674079]
[1773128335070,0.03,70355.0,70344.0,0.2674079]
[1773128335229,0.0712879,70356.0,70337.0,0.07128622]
[1773128335230,0.3049966,70351.0,70337.0,0.07128622]
[1773128335431,0.3049966,70351.0,70338.0,0.00144]
[1773128335832,0.03,70349.0,70339.0,0.09166024]
[1773128336035,0.03,70349.0,70340.0,0.00144]
[1773128336240,0.03,70349.0,70341.0,0.02057592]
[1773128336737,0.03,70350.0,70341.0,0.02057592]
[1773128338264,0.03,70349.0,70343.0,0.02057592]
[1773128338431,0.07107055,70353.0,70343.0,0.02057592]
[1773128338852,0.07107016,70354.0,70343.0,0.02057592]
[1773128339070,0.07128788,70356.0,70343.0,0.02057592]
[1773128339287,0.03,70355.0,70343.0,0.02077592]
[1773128339497,0.07128788,70356.0,70345.0,0.02057592]
[1773128339679,0.07128788,70356.0,70346.0,0.00144]
[1773128339870,0.07128788,70356.0,70347.0,0.02057592]
[1773128340706,0.07128788,70356.0,70348.0,0.00144]
[1773128340936,0.00022001,70356.0,70348.0,0.00144]
[1773128341084,0.00022001,70356.0,70349.0,0.02057592]
[1773128341263,0.03,70355.0,70349.0,0.02043812]
[1773128341896,0.00039071,70361.0,70348.0,0.00144]
[1773128341897,0.0001707,70370.0,70353.0,0.2674079]
[1773128342096,0.07127706,70366.0,70354.0,0.02201592]
[1773128342299,0.03,70365.0,70356.0,0.02057592]
[1773128343523,0.03022001,70364.0,70356.0,0.02057592]
[1773128343749,0.03022001,70364.0,70356.0,0.02157592]
[1773128343923,0.03022001,70364.0,70356.0,0.02057592]
[1773128344313,0.03022001,70364.0,70356.0,0.02157592]
[1773128344521,0.00022001,70366.0,70356.0,0.02157592]
[1773128344522,0.03023,70375.0,70358.0,0.02057592]
[1773128344767,0.00022001,70388.0,70363.0,0.02057592]
[1773128344768,0.09164871,70385.0,70363.0,0.02057592]
[1773128344974,0.09164871,70385.0,70367.0,0.02057592]
[1773128345117,0.09164871,70385.0,70368.0,0.01998605]
[1773128345317,0.09164871,70385.0,70369.0,0.02057592]
[1773128345520,0.09164871,70385.0,70371.0,0.02057592]
[1773128345715,0.03,70384.0,70371.0,0.02057592]
[1773128346690,0.03,70382.0,70373.0,0.02057592]
[1773128348293,0.00022001,70379.0,70373.0,0.02057592]
[1773128349593,0.00022001,70379.0,70374.0,0.07104896]
[1773128349790,0.00022001,70379.0,70375.0,0.0208014]
[1773128349991,0.00022001,70379.0,70375.0,0.02065395]
[1773128350655,0.00022001,70379.0,70376.0,0.00144]
[1773128350937,0.03,70381.0,70377.0,0.0208014]
[1773128351490,0.03,70381.0,70376.0,0.00144]
[1773128351746,0.03,70381.0,70376.0,0.0222414]
[1773128352718,0.10104219,70381.0,70376.0,0.00144]
[1773128352917,0.07103988,70384.0,70376.0,0.00144]
[1773128352918,0.03,70380.0,70377.0,0.0208014]
[1773128353578,0.02061079,70385.0,70377.0,0.0208014]
[1773128354089,0.03,70384.0,70377.0,0.0208014]
[1773128354845,0.00022001,70380.0,70378.0,0.07104492]
[1773128355050,0.00022001,70380.0,70378.0,0.09184632]
[1773128355454,0.03,70384.0,70378.0,0.09184632]
[1773128355688,0.03,70384.0,70378.0,0.09169886]
[1773128357081,0.03,70384.0,70376.0,0.00144]
[1773128357255,0.03,70384.0,70377.0,0.07104593]